Cogmind - Beta 15 @@@ ROGUE MODE // 2025.05.09 @ 09:07:18 Player: b_ Result: Destroyed by 3X-CAB(j) with Overtuned Pulse Rifle Performance ------------- Evolutions (0) 0 Regions Visited (3) 600 Robots Destroyed (9) 45 Value Destroyed (283) 283 Prototype IDs (0) 0 Alien Tech Used (0) 0 Bonus (800) 800 TOTAL SCORE: 1728 Bonus ------- Registered with UFD 300 Met Optimus in HQ 500 Cogmind --------- Core Integrity 0/250 Matter 300/300 Energy 100/100 System Corruption 0% Temperature Cool (12) Movement Core (400) Ox7 Location -8/Scraptown Parts ------- > --- POWER (1) -------- (None) > --- PROPULSION (2) --- (None) > --- UTILITY (2) ------ Large Storage Unit > --- WEAPON (2) ------- Ripper > --- INVENTORY (15) --- Light Deuterium Engine Fusion Compressor Light Treads Overtuned Treads Scrap Suit Deep Structural Scanner Improved Terrain Scan Processor Improved Melee Analysis Suite Advanced Melee Analysis Suite Makeshift Hacking Suite Overtuned Pulse Rifle CPS Tube (2) CPS Tube (2) Ripteeth Peak State ------------ > --- POWER ------------ Improved Deuterium Engine > --- PROPULSION ------- Armored Treads Armored Treads > --- UTILITY ---------- Large Storage Unit Terrain Scanner > --- WEAPON ----------- Ripper Makeshift Axe > --- INVENTORY -------- Light Deuterium Engine Fusion Compressor Light Treads Overtuned Treads Scrap Suit Deep Structural Scanner Sensor Array Improved Terrain Scan Processor Improved Melee Analysis Suite Advanced Melee Analysis Suite Overtuned Pulse Rifle CPS Tube CPS Tube Ripteeth [Rating: 25] Favorites ----------- Power Improved Deuterium Engine Engine Improved Deuterium Engine Power Core Fusion Compressor Propulsion Armored Treads Treads Armored Treads Wheel Wheel Utility Large Storage Unit Device Seismic Detector Storage Large Storage Unit Weapon Ripper Energy Gun Medium Laser Ballistic Gun Assault Rifle Slashing Weapon Ripper Build | -11 -10 -10 -8 ------- Run | Yrd Mat Sub Scr Slots Evolved . | . . . . Power . | . . . . Propulsion . | . . . . Utility . | . . . . Weapon . | . . . . Parts Attached 22 | 8 2 6 6 Power 4 | 1 . 1 2 Engine 3 | 1 . 1 1 Core 1 | . . . 1 Reactor . | . . . . Propulsion 7 | 2 . 2 3 Treads 5 | . . 2 3 Leg . | . . . . Wheel 2 | 2 . . . Hover . | . . . . Flight . | . . . . Utility 5 | 3 1 . 1 Device 3 | 2 . . 1 Storage 2 | 1 1 . . Processor . | . . . . Hackware . | . . . . Protection . | . . . . Artifact . | . . . . Weapon 6 | 2 1 3 . Energy Gun 1 | 1 . . . Energy Cannon . | . . . . Ballistic Gun 3 | 1 1 1 . Ballistic Cannon . | . . . . Launcher . | . . . . Special Weapon . | . . . . Impact Weapon . | . . . . Slashing Weapon 2 | . . 2 . Piercing Weapon . | . . . . Special Melee Weapon . | . . . . Unidentified Prototypes . | . . . . Parts Lost 5 | . . . 5 Power 1 | . . . 1 Propulsion 2 | . . . 2 Utility 1 | . . . 1 Weapon 1 | . . . 1 Highest Loss Streak 5 | . . . 5 To Critical Strikes . | . . . . Average Backups 13 | 4 10 13 13 Power 1 | . 1 1 1 Propulsion 3 | 3 5 5 2 Utility 6 | . 3 4 6 Weapon 1 | . 1 2 1 Tool/Special . | . . . . Unused Backups 24 | 1 . . 23 Power 3 | . . . 3 Propulsion 6 | 1 . . 5 Utility 9 | . . . 9 Weapon 4 | . . . 4 Tool/Special 2 | . . . 2 Average Slot Usage (%) 99 | . 100 100 99 Engine 14 | . 14 14 14 Treads 25 | . . 18 28 Wheel 2 | . 28 9 . Device 14 | . 14 14 14 Storage 14 | . 14 14 14 Ballistic Gun 3 | . 19 25 . Slashing Weapon 23 | . . 2 27 Peak Build Rating 25 | 7 8 15 25 Average Rating 18 | 5 7 9 20 On Entrance 7 | . 7 8 15 Naked Turns . | . . . . Heaviest Build 37 | 15 30 32 37 Greatest Support 40 | 20 20 40 40 Greatest Overweight (x) 11 | 3 1 1 11 Average Overweight (x) . | . . . . Largest Inventory Capacity 15 | 8 15 15 15 Average Capacity 14 | 7 13 15 15 Most Carried 15 | 8 11 15 15 Average Carried 13 | 4 10 13 14 Final Capacity 15 | 8 15 15 15 Final Carried 15 | 8 11 15 15 Class Distribution -------------------- 100% | Mutant Dominant Class ---------------- Mutant | -10/Materials Mutant | -10/Subcaves Mutant | -8/Scraptown Resources | -11 -10 -10 -8 ----------- Run | Yrd Mat Sub Scr Matter Collected 505 | 295 44 66 100 Remotely 71 | 71 . . . Salvage Created 517 | 109 41 117 250 Parts 31 | 6 3 9 13 Haulers Intercepted 1 | . 1 . . Recyclers Shooed . | . . . . Parts Field Recycled . | . . . . Retrieved Matter . | . . . . Parts Self-Destructed 3 | . . 3 . Prevented . | . . . . Kills | -11 -10 -10 -8 ------- Run | Yrd Mat Sub Scr Combat Hostiles Destroyed 6 | . . 2 4 Melee 4 | . . . 4 Guns 2 | . . 2 . Classes Destroyed 8 | 2 1 2 3 Tunneler 1 | 1 . . . Hauler 1 | . 1 . . Recycler 1 | 1 . . . Sentry 1 | . . 1 . Subdweller 1 | . . 1 . Explorer 1 | . . . 1 Ranger 1 | . . . 1 Scrapper 2 | . . . 2 Best Kill Streak 2 | 1 1 1 2 Combat Bots Only 2 | . . 1 2 Max Kills in Single Turn 1 | 1 1 1 1 Gunslinging . | . . . . Exploded . | . . . . Melee 1 | . . . 1 Uniques/NPCs Destroyed . | . . . . Combat | -11 -10 -10 -8 -------- Run | Yrd Mat Sub Scr Hostile Shots Fired 100 | . 5 7 88 Missed 26 | . 1 2 23 Hits 74 | . 4 5 65 Melee 1 | . . . 1 Projectile 73 | . 4 5 64 Critical Strikes 1 | . . . 1 Damage Taken 1011 | . 43 90 878 Core 271 | . . . 271 Absorbed by Shields . | . . . . Core Remaining (%) 100 | 100 . . . Volleys Fired 17 | 5 7 5 . Largest 2 | 2 2 2 . Hottest 70 | 70 70 43 . Shots Fired 34 | 10 14 10 . Gun 34 | 10 14 10 . Cannon . | . . . . Launcher . | . . . . Special . | . . . . Kinetic 25 | 5 10 10 . Thermal 9 | 5 4 . . Explosive . | . . . . Electromagnetic . | . . . . Robot Hit Streak 8 | 6 7 8 . Robot Miss Streak 3 | 1 3 . . Penetration Max . | . . . . Secondary Targets . | . . . . Shots Hit Robots 32 | 8 8 8 8 Core Hits 13 | 3 2 3 5 Critical Kills . | . . . . Critical Parts Destroyed . | . . . . Critical Strikes 2 | 1 . . 1 Burn 1 | 1 . . . Sever 1 | . . . 1 Melee Attacks 9 | . . . 9 Impact . | . . . . Slashing 9 | . . . 9 Piercing . | . . . . Sneak Attacks . | . . . . Combat Hostiles . | . . . . Follow-up Attacks 1 | . . . 1 Damage Inflicted 525 | 98 102 104 221 Guns 304 | 98 102 104 . Cannons . | . . . . Explosions . | . . . . Melee 221 | . . . 221 Ramming . | . . . . Kinetic 231 | 61 66 104 . Thermal 73 | 37 36 . . Explosive . | . . . . Electromagnetic . | . . . . Impact . | . . . . Slashing 221 | . . . 221 Piercing . | . . . . Highest Corruption . | . . . . Average Corruption . | . . . . Corruption Purged . | . . . . Corruption Blocked . | . . . . Overload Shots . | . . . . Overflow Damage 12 | . . . 12 Projectiles . | . . . . Explosions . | . . . . Melee 12 | . . . 12 Knockbacks . | . . . . Impact . | . . . . Kinetic . | . . . . Secondary . | . . . . Self-Inflicted Damage . | . . . . Shots . | . . . . Rammed . | . . . . Targets Rammed . | . . . . Kicked . | . . . . Crushed . | . . . . Highest Temperature 47 | 18 47 . 19 Average Temperature 12 | 7 18 . 7 Received Heat Transfer 430 | . 24 27 379 Siege Activations . | . . . . Martial Activations . | . . . . Shielding Activations . | . . . . Robots Disrupted . | . . . . Combat Hostiles . | . . . . Robots Corrupted . | . . . . Combat Hostiles . | . . . . Parts Fried . | . . . . Impact Corruptions . | . . . . Robots Melted . | . . . . Combat Hostiles . | . . . . Parts Melted 2 | . . . 2 Heat Transferred 296 | 185 111 . . Parts Sabotaged . | . . . . Parts Stolen . | . . . . Parts Stripped . | . . . . Power Chain Reactions . | . . . . Alert | -11 -10 -10 -8 ------- Run | Yrd Mat Sub Scr Maximum Alert Level . | . . . . Low Security (%) 100 | 100 100 . . Level 1 . | . . . . Level 2 . | . . . . Level 3 . | . . . . Level 4 . | . . . . Level 5 . | . . . . High Security . | . . . . Max Security . | . . . . Peak Influence 30 | 5 30 . . Initial . | . . . . Average 5 | 1 7 . . Influence Increases 77 | 10 47 20 . Destroy 0b10 Robot/C 20 | . . 20 . Destroy 0b10 Robot/NC 15 | 10 5 . . Destroy Leader 2 | . 2 . . Successful Hack 10 | . 10 . . Lose Combat Pursuer 30 | . 30 . . Influence Decreases 77 | 10 37 30 . Entered New Map 6 | . . 6 . Time Decay 71 | 10 37 24 . Squads Dispatched 1 | . 1 . . Investigation . | . . . . Extermination . | . . . . Reinforcement 1 | . 1 . . Assault . | . . . . Garrison . | . . . . Intercept . | . . . . Searches Triggered . | . . . . Construction Impeded . | . . . . Haulers Reinforced . | . . . . Active Scanning Responses . | . . . . Cargo Convoy Interrupts . | . . . . Stealth | -11 -10 -10 -8 --------- Run | Yrd Mat Sub Scr Distress Signals 1 | . 1 . . Communications Jammed . | . . . . Distress Signals . | . . . . Times Spotted 27 | . 6 2 19 Peak Tracking Total 7 | . 3 1 7 Tactical Retreats 1 | . 1 . . Traps | -11 -10 -10 -8 ------- Run | Yrd Mat Sub Scr Traps Triggered . | . . . . Indirectly . | . . . . Trap Hack Attempts . | . . . . Triggered . | . . . . Disarmed . | . . . . Reprogrammed . | . . . . Reused . | . . . . Traps Extracted . | . . . . Installed . | . . . . Triggered . | . . . . Machines | -11 -10 -10 -8 ---------- Run | Yrd Mat Sub Scr Machines Disabled 1 | . . . 1 Max in Single Turn 1 | . . . 1 Machines Repaired . | . . . . Machines Dismantled . | . . . . Machines Sabotaged . | . . . . Overloaded Fab Kills . | . . . . Hacking | -11 -10 -10 -8 --------- Run | Yrd Mat Sub Scr Machines Accessed 11 | . 3 . 8 Terminals 3 | . 3 . . Fabricators . | . . . . Repair Stations . | . . . . Recycling Units . | . . . . Scanalyzers . | . . . . Garrison Access . | . . . . Total Hacks 71 | . 12 . 59 Successful 64 | . 5 . 59 Failed 7 | . 7 . . Catastrophic 2 | . 2 . . Database Lockouts . | . . . . Manual 2 | . 2 . . Terminals 12 | . 12 . . Fabricators . | . . . . Repair Stations . | . . . . Recycling Units . | . . . . Scanalyzers . | . . . . Garrison Access . | . . . . Terminal Hacks 64 | . 5 . 59 Record 60 | . 1 . 59 Robot Analysis 1 | . 1 . . Alert Level 1 | . 1 . . Dispatch Records 1 | . 1 . . Zone Layout 1 | . 1 . . Fabricator Hacks . | . . . . Repair Station Hacks . | . . . . Recycling Unit Hacks . | . . . . Scanalyzer . | . . . . Garrison Access Hacks . | . . . . Unauthorized Hacks . | . . . . Terminals . | . . . . Fabricators . | . . . . Repair Stations . | . . . . Recycling Units . | . . . . Scanalyzers . | . . . . Garrison Access . | . . . . Data Cores Recovered . | . . . . Used . | . . . . Hacking Detections 3 | . 3 . . Full Trace Events . | . . . . Feedback Events . | . . . . Feedback Blocked . | . . . . Robot Schematics Acquired . | . . . . Robots Built . | . . . . Authchips . | . . . . Time . | . . . . Total Robot Build Rating . | . . . . Part Schematics Acquired . | . . . . Parts Built . | . . . . Authchips . | . . . . Time . | . . . . Total Part Build Rating . | . . . . Parts Repaired . | . . . . Time . | . . . . Parts Recycled . | . . . . Recycled Matter . | . . . . Retrieved Matter . | . . . . Retrieved Components . | . . . . Parts Scanalyzed . | . . . . Part Schematics Acquired . | . . . . Parts Damaged . | . . . . Bothacking | -11 -10 -10 -8 ------------ Run | Yrd Mat Sub Scr Used RIF Installer . | . . . . Robots Hacked . | . . . . Non-combat . | . . . . Combat . | . . . . Robot Hacks Applied . | . . . . Relay Couplers Released . | . . . . Fabnet Peak Effective % . | . . . . Robots Rewired . | . . . . Allies Hacked . | . . . . Hacks Repelled . | . . . . Allies | -11 -10 -10 -8 -------- Run | Yrd Mat Sub Scr Total Allies . | . . . . Largest Group . | . . . . Highest-Rated Group . | . . . . Highest-Rated Ally . | . . . . Total Orders . | . . . . Ally Attacks . | . . . . Total Damage . | . . . . Kills . | . . . . Allies Corrupted . | . . . . Allies Melted 7 | . . . 7 Intel | -11 -10 -10 -8 ------- Run | Yrd Mat Sub Scr Active Infowar (turns) 2825 | 15 179 252 2379 Terrain 1377 | . . . 1377 Seismic 1448 | 15 179 252 1002 Robot Analysis Total 1 | . 1 . . Derelict Logs Recovered 2 | . . . 2 Drone Launches . | . . . . Drone Recoveries . | . . . . Exploration | -11 -10 -10 -8 ------------- Run | Yrd Mat Sub Scr Turns Passed 2908 | 95 179 252 2382 Spaces Moved 1765 | 72 159 149 1385 Core 6 | 5 . . 1 Treads 1481 | . . 97 1384 Legs . | . . . . Wheels 278 | 67 159 52 . Hover . | . . . . Flight . | . . . . Fastest Speed 50 | 50 80 95 155 Average Speed 155 | 82 91 137 168 Slowest Speed 600 | 200 95 160 600 Overloaded Moves . | . . . . Propulsion Burnouts . | . . . . Robots Hopped . | . . . . Potential Cave-ins . | . . . . Cave-ins Triggered . | . . . . Exploration Rate (%) 32 | 4 32 9 83 Regions Visited 3 Branch Regions 2 Pre-discovered Areas . | . . . . Known Exits Taken . | . . . . Unknown Exits Taken 3 | 1 1 1 . Scrap Searched 5 | . . 3 2 Spaces Dug . | . . . . Terrain Destroyed . | . . . . Melee . | . . . . Projectile . | . . . . AOE . | . . . . Terrain Rammed . | . . . . Walls Destroyed . | . . . . Machines Disabled . | . . . . Actions | -11 -10 -10 -8 --------- Run | Yrd Mat Sub Scr Total 1903 | 94 178 189 1442 Wait 34 | . 7 21 6 Move 1762 | 71 158 148 1385 Hop . | . . . . Pick Up 33 | 9 3 6 15 Fast Attach 7 | 7 . . . Attach . | . . . . Detach . | . . . . Swap 17 | 1 2 6 8 Drop 25 | 1 1 3 20 Fire 17 | 5 7 5 . Melee 8 | . . . 8 Ram . | . . . . Kick . | . . . . Crush . | . . . . Escape Stasis . | . . . . Rewire . | . . . . Trap . | . . . . Miscellaneous . | . . . . Route ------- -11/Scrapyard -10/Materials (discovered 2 exits: [*Min] / [*Sub]) -10/Subcaves (discovered 2 exits: *Scr x2) -8/Scraptown (discovered 2 exits: *Fac x2) History --------- Turn | Location | Event 2 | -11/Scrapyard | Met Revision 17 18 | -11/Scrapyard | Discovered new exit (range 15) 96 | -11/Scrapyard | Entered Materials 97 | -10/Materials | Met a group of wandering Federalists 194 | -10/Materials | Discovered new exit (range 15) 271 | -10/Materials | Discovered new exit (range 6) 275 | -10/Materials | Entered Subcaves 275 | -10/Subcaves | Accompanied by 2 allies 276 | -10/Subcaves | Continued accompanying wandering Federalists (3) 276 | -10/Subcaves | Approached by a straggling Scientist 305 | -10/Subcaves | Build established: Mutant 436 | -10/Subcaves | Scientist uncovered a shortcut to Scraptown 444 | -10/Subcaves | Disturbed a concealed Subdweller 492 | -10/Subcaves | Wandering Federalist uncovered a shortcut to Scraptown 527 | -10/Subcaves | Entered Scraptown 1000 | -8/Scraptown | Discovered new exit (range 6) 1111 | -8/Scraptown | Scanned Subdweller tech in exchange for log data 1116 | -8/Scraptown | Learned Factory emergency access door positions 1117 | -8/Scraptown | Learned Research stockpile data 1201 | -8/Scraptown | Visited Assassins FH 1251 | -8/Scraptown | Visited Fellowship of the Rings 1294 | -8/Scraptown | Visited Awakened 1348 | -8/Scraptown | Visited UFD Registry 1381 | -8/Scraptown | Visited TADAMA 1851 | -8/Scraptown | Visited Cyclists 1958 | -8/Scraptown | Visited IN-MT5's Study 2075 | -8/Scraptown | Registered with UFD as "Protongunner" 2168 | -8/Scraptown | Entered Cyclist Reading Room 2277 | -8/Scraptown | Visited Curators Association 2321 | -8/Scraptown | Visited Research Penetration Think Tank 2359 | -8/Scraptown | Visited Scrap Suit Storage 2415 | -8/Scraptown | Visited Chapter 10 2532 | -8/Scraptown | Met Optimus 2532 | -8/Scraptown | Accepted into 0bPrime 2645 | -8/Scraptown | Civil war broke out across Scraptown 2667 | -8/Scraptown | Found Deep Structural Scanner 2679 | -8/Scraptown | Found Scrap Suit 2763 | -8/Scraptown | Identified exit to Factory 2810 | -8/Scraptown | Lost 12 allies 2820 | -8/Scraptown | Optimus destroyed in the chaos of civil war 2895 | -8/Scraptown | Core integrity fell below 50% 2909 | -8/Scraptown | Core integrity fell below 20% 2909 | -8/Scraptown | Destroyed by 3X-CAB(j) with Overtuned Pulse Rifle Last Messages --------------- 02900_ Arm. Treads destroyed. 02901_ FZ-1CW(h) switches sides. 02901_ Bolt penetrates Wall. 02901_ Bolt penetrates 3X-CAB(j). 02902_ Penetrated by Bolt. 02902_ FZ-1CW(h) destroyed. 02902_ 7Q-O6H(x) suffers critical hit (Burn). 02902_ 7Q-O6H(x) destroyed. 02903_ 3X-CAB(j) heat spikes uncontrollably. 02903_ Arm. Treads destroyed. 02904_ Penetrated by Bolt. 02905_ Critical hit (Burn: +50). 02905_ Machine disabled. 02905_ Bolt penetrates Machine. 02906_ Terrain Scanner destroyed. 02906_ Penetrated by Bolt. 02906_ Imp. Deuterium Engine destroyed. 02906_ Bolt penetrates Machine. 02907_ 3X-CAB(j) heat damages Scrap Suit. 02909_ Penetrated by Bolt. Map ----- +----------------------------------------------------+ | " "??????####??#?# !!%#???????????????????????? | | "??????#![!# !## [#%#???????????????????????? | | " ""?????? ] #=!## !=?? ? # ?????????????????? | | "?????# # ?# "#?"## #??????????????????? | | ? ? ???? ??# %"? ???????????????????? | | ? ????????? ???# [#? ??? ??????????????? | | ??# #???????#?# #???#!%#?!!#???#?????????????????? | | ### ########### #####! ##%##?????#???????????????? | | "" """""""" "" """" =""="#?????????????????????? | | "#?????????????????????? | | "#??? ??"??????????????? | | ! != [!"#?? ????????????? | | =%! = !!%%h[*"## [! ???????????? | | != [%* !%*j/=%[% %[% ????????????? | | """""""""""""""" " "j%!* = ## =!! ????????????? | | """""""""""""""""""""![!!! ##? " " ?????????????? | | # ################""! *%!"#??? ?????????????????? | | [! ##???#????#"" / "#?????????????????????? | | =! X"#?#???#??#""!! #?????????????????????? | | ![ " ##?#???##?#"=%**= "#???" ???????????????? | | = !"" X"#??#???###"%[[!!= #?? X"??????????????? | | =%*" #####;### =*!j!![% ## "#?????????????? | | ""= %*!%/=![ ! ""??????????????? | | "" = !=!*! ## " "#????#????????? | | " ##"###### #""!= "##? """??#????????????? | | "" ""#??#?#?###""==* @"#???"?????????????????? | | " "" ##????????#""=%! "#?#?#?????????????????? | | X"#???###??#"" !! "##???#?#??????????????? | | ##??#????##"" "#?????????????????#???? | | # ################"" "#############?#???????? | | """"""""""""""""""""" [=%"## """"""" "#?????????? | | """"""" """" " """""" =!!= """""" "#?????????? | | [%= / %*!%"## " " "#?????????? | | = =%! ! =!*[= ## """ "#?????????? | | !%==!=%! *%! !!"## "#?????????? | | = !=[ [ != ## ""#??#??????? | | !%! [%* # "#???????#?? | | """""!*[""""""""" """= " g ## "#?????????? | | ####" "########## ###### ## # #"#?????????? | | ?#" ##?# # ## ########"#?????????? | | ?##"" "#??## ##h ####???##???#?????????? | | ??#"" #?##" "# #?##???????#??????????? | | ??#"" "##?#"! !"# *"?###????????#????????? | | ??#"" "#??#"! !"# %##???????#????????????? | | ??#""""" ""#??#"! !"# #?#???????????????????? | | ??#""""""""#?##" !"# ???????????????????? | | ??##########??####X ## ?????????????????????? | | ??#???#???????# #" "# ???????? ????????????? | | ????????#?????# !"# ??????????#??????????? | | ?????????#????# ####### ????? ???????????????? | +----------------------------------------------------+ Best States ------------- Heat Dissipation 25 Energy Generation 16 Energy Capacity 290 Matter Stores 300 Matter Capacity 300 Sight Range 16 Terrain Scan Range 14 Terrain Scan Density 10 Evasion (%) 44 Recoil Reduction 2 Item Schematics ----------------- None Robot Schematics ------------------ None Fabricated ------------ Nothing Repaired ---------- Nothing Alien Tech Used ----------------- None Achievements -------------- None Challenges ------------ None Game ------ Seed WeaponsPlexusBuckler Manual? 0 Play Time 00:53:43 Cumulative 17.6 hours Start 2025.05.06 @ 23:28:00 End 2025.05.09 @ 09:07:18 Sessions 3 Manual Loads 0 Difficulty Rogue Special Mode None Game No. 11 Rogue 11 Adventurer 0 Explorer 0 Win Type - Total 0 Types 0/0/0/0/0/0/0/0/0/0 Lore% 17 Gallery% 18 Achievement% 20 Wizard Run 0 Options --------- Layout 0 ASCII 0 Keyboard 0 Movement Numpad Keybinds 0 Fullscreen 2 Font 18/SmallcapsGlow Map View 76x50 Zoom Use 0% Tactical HUD 1 Map Filters NONE Filters NONE Steam 1 RUN: 8e2bce25-24e4-4e77-b11e-0a2831dbe14a